[Event "Titled Tuesday Blitz March 28 Late 2023"]
[White "Bouget, Alexandre"]
[Black "Khatena, Moshe"]
[WhiteFideId "681318"]
[BlackFideId "2010461"]
[WhiteElo "2177"]
[BlackElo "2169"]
[Result "1-0"]
[Round "05"]
[TimeControl "180+2"]
[Date "2023.03.28"]
[WhiteClock "0:00:17"]
[BlackClock "0:00:18"]

1. Nc3 {[%clk 0:02:43]}  c5 {[%clk 0:02:55]} 2. e3 {[%clk 0:02:42]}  Nc6 {[%clk 0:02:55]} 3. d4 {[%clk 0:02:40]}  e6 {[%clk 0:02:48]} 4. Nf3 {[%clk 0:02:38]}  Nf6 {[%clk 0:02:46]} 5. Be2 {[%clk 0:02:35]}  b6 {[%clk 0:02:40]} 6. O-O {[%clk 0:02:32]}  Bb7 {[%clk 0:02:39]} 7. dxc5 {[%clk 0:02:31]}  bxc5 {[%clk 0:02:37]} 8. e4 {[%clk 0:02:27]}  d6 {[%clk 0:02:34]} 9. Bg5 {[%clk 0:02:21]}  Be7 {[%clk 0:02:30]} 10. Nb5 {[%clk 0:02:15]}  a6 {[%clk 0:02:26]} 11. Bxf6 {[%clk 0:02:11]}  gxf6 {[%clk 0:02:22]} 12. Nc3 {[%clk 0:02:09]}  Rg8 {[%clk 0:02:15]} 13. Qd2 {[%clk 0:02:07]}  Qb6 {[%clk 0:01:54]} 14. b3 {[%clk 0:02:05]}  Nd4 {[%clk 0:01:51]} 15. Nxd4 {[%clk 0:02:03]}  cxd4 {[%clk 0:01:51]} 16. Na4 {[%clk 0:02:03]}  Qa7 {[%clk 0:01:49]} 17. Bf3 {[%clk 0:01:56]}  f5 {[%clk 0:01:33]} 18. Rfe1 {[%clk 0:01:56]}  Rc8 {[%clk 0:01:28]} 19. Rad1 {[%clk 0:01:50]}  Bf6 {[%clk 0:01:24]} 20. Nb2 {[%clk 0:01:44]}  Qa8 {[%clk 0:01:23]} 21. Nc4 {[%clk 0:01:43]}  Ke7 {[%clk 0:01:21]} 22. Nb6 {[%clk 0:01:40]}  Qb8 {[%clk 0:01:17]} 23. Nxc8+ {[%clk 0:01:36]}  Qxc8 {[%clk 0:01:18]} 24. c4 {[%clk 0:01:25]}  Qa8 {[%clk 0:01:14]} 25. Qd3 {[%clk 0:01:14]}  e5 {[%clk 0:01:05]} 26. Kh1 {[%clk 0:01:06]}  Rg5 {[%clk 0:00:56]} 27. exf5 {[%clk 0:00:50]}  Bxf3 {[%clk 0:00:51]} 28. Qxf3 {[%clk 0:00:51]}  Qxf3 {[%clk 0:00:50]} 29. gxf3 {[%clk 0:00:52]}  Rxf5 {[%clk 0:00:50]} 30. Rd3 {[%clk 0:00:51]}  a5 {[%clk 0:00:43]} 31. a3 {[%clk 0:00:44]}  Ke6 {[%clk 0:00:39]} 32. b4 {[%clk 0:00:44]}  axb4 {[%clk 0:00:40]} 33. axb4 {[%clk 0:00:43]}  Rg5 {[%clk 0:00:38]} 34. Rxd4 {[%clk 0:00:40]}  Rg8 {[%clk 0:00:36]} 35. Rd3 {[%clk 0:00:37]}  Rb8 {[%clk 0:00:35]} 36. b5 {[%clk 0:00:36]}  Bd8 {[%clk 0:00:34]} 37. f4 {[%clk 0:00:34]}  f6 {[%clk 0:00:34]} 38. fxe5 {[%clk 0:00:33]}  fxe5 {[%clk 0:00:33]} 39. f4 {[%clk 0:00:32]}  Ba5 {[%clk 0:00:30]} 40. Re2 {[%clk 0:00:31]}  Rc8 {[%clk 0:00:26]} 41. fxe5 {[%clk 0:00:29]}  dxe5 {[%clk 0:00:27]} 42. Rd5 {[%clk 0:00:29]}  Bc3 {[%clk 0:00:26]} 43. b6 {[%clk 0:00:23]}  Rxc4 {[%clk 0:00:23]} 44. Rb5 {[%clk 0:00:24]}  Bd4 {[%clk 0:00:18]} 45. b7 {[%clk 0:00:20]}  Rc1+ {[%clk 0:00:17]} 46. Kg2 {[%clk 0:00:20]}  Rg1+ {[%clk 0:00:18]} 47. Kh3 {[%clk 0:00:19]}  Kf5 {[%clk 0:00:18]} 48. b8=Q {[%clk 0:00:17]} 1-0


[Site "https://www.chess.com"]

[Event "Titled Tuesday Blitz March 28 Late 2023"]
[White "KSho99"]
[Black "Jorajuria Mendoza, Algol"]
[BlackFideId "5128897"]
[WhiteElo "2155"]
[BlackElo "2076"]
[Result "0-1"]
[Round "05"]
[TimeControl "180+2"]
[Date "2023.03.28"]
[WhiteClock "0:00:15"]
[BlackClock "0:00:28"]

1. e4 {[%clk 0:03:00]}  c5 {[%clk 0:02:45]} 2. Nf3 {[%clk 0:03:00]}  Nc6 {[%clk 0:02:45]} 3. Bb5 {[%clk 0:03:00]}  e6 {[%clk 0:02:46]} 4. O-O {[%clk 0:02:59]}  Nge7 {[%clk 0:02:46]} 5. Re1 {[%clk 0:02:59]}  a6 {[%clk 0:02:47]} 6. Bf1 {[%clk 0:02:59]}  Ng6 {[%clk 0:02:44]} 7. c3 {[%clk 0:02:47]}  Be7 {[%clk 0:02:42]} 8. d4 {[%clk 0:02:47]}  cxd4 {[%clk 0:02:41]} 9. cxd4 {[%clk 0:02:47]}  d6 {[%clk 0:02:41]} 10. Nc3 {[%clk 0:02:40]}  O-O {[%clk 0:02:39]} 11. g3 {[%clk 0:02:33]}  b5 {[%clk 0:02:38]} 12. h4 {[%clk 0:02:26]}  Re8 {[%clk 0:02:07]} 13. h5 {[%clk 0:02:23]}  Nf8 {[%clk 0:02:08]} 14. d5 {[%clk 0:01:58]}  Ne5 {[%clk 0:02:02]} 15. Nxe5 {[%clk 0:01:49]}  dxe5 {[%clk 0:02:03]} 16. h6 {[%clk 0:01:37]}  g6 {[%clk 0:01:45]} 17. Be3 {[%clk 0:01:25]}  exd5 {[%clk 0:01:39]} 18. Nxd5 {[%clk 0:01:13]}  Bd6 {[%clk 0:01:36]} 19. Rc1 {[%clk 0:01:00]}  Bb7 {[%clk 0:01:31]} 20. Qg4 {[%clk 0:00:50]}  Bc8 {[%clk 0:01:27]} 21. Qd1 {[%clk 0:00:47]}  Bb7 {[%clk 0:01:14]} 22. Qd2 {[%clk 0:00:47]}  Ne6 {[%clk 0:01:03]} 23. Bb6 {[%clk 0:00:42]}  Qg5 {[%clk 0:00:59]} 24. Be3 {[%clk 0:00:37]}  Qd8 {[%clk 0:00:52]} 25. Bb6 {[%clk 0:00:33]}  Qg5 {[%clk 0:00:51]} 26. Qxg5 {[%clk 0:00:33]}  Nxg5 {[%clk 0:00:52]} 27. Nf6+ {[%clk 0:00:33]}  Kf8 {[%clk 0:00:49]} 28. Nxe8 {[%clk 0:00:33]}  Nf3+ {[%clk 0:00:49]} 29. Kg2 {[%clk 0:00:32]}  Nxe1+ {[%clk 0:00:50]} 30. Rxe1 {[%clk 0:00:31]}  Kxe8 {[%clk 0:00:50]} 31. f3 {[%clk 0:00:29]}  Rc8 {[%clk 0:00:49]} 32. Bd3 {[%clk 0:00:28]}  Bb4 {[%clk 0:00:40]} 33. Rd1 {[%clk 0:00:27]}  Rc6 {[%clk 0:00:37]} 34. Be3 {[%clk 0:00:27]}  Bc8 {[%clk 0:00:36]} 35. Rc1 {[%clk 0:00:27]}  Rxc1 {[%clk 0:00:34]} 36. Bxc1 {[%clk 0:00:27]}  Be6 {[%clk 0:00:33]} 37. a3 {[%clk 0:00:27]}  Bc5 {[%clk 0:00:34]} 38. b4 {[%clk 0:00:27]}  Bd4 {[%clk 0:00:33]} 39. Bg5 {[%clk 0:00:25]}  Bb2 {[%clk 0:00:27]} 40. a4 {[%clk 0:00:25]}  bxa4 {[%clk 0:00:27]} 41. Bxa6 {[%clk 0:00:21]}  a3 {[%clk 0:00:28]} 42. Bb5+ {[%clk 0:00:15]}  Kf8 {[%clk 0:00:28]} 0-1


[Site "https://www.chess.com"]

[Event "Titled Tuesday Blitz March 28 Late 2023"]
[White "Toma, Katarzyna"]
[Black "Sliwicki, Damian"]
[WhiteFideId "1119907"]
[BlackFideId "1127128"]
[WhiteElo "2149"]
[BlackElo "2030"]
[Result "0-1"]
[Round "05"]
[TimeControl "180+2"]
[Date "2023.03.28"]
[WhiteClock "0:00:15"]
[BlackClock "0:00:42"]

1. e4 {[%clk 0:03:00]}  d5 {[%clk 0:02:47]} 2. exd5 {[%clk 0:02:59]}  Qxd5 {[%clk 0:02:31]} 3. Nc3 {[%clk 0:02:59]}  Qa5 {[%clk 0:02:30]} 4. Bc4 {[%clk 0:02:55]}  Nf6 {[%clk 0:02:29]} 5. Nf3 {[%clk 0:02:52]}  Bf5 {[%clk 0:02:22]} 6. O-O {[%clk 0:02:47]}  e6 {[%clk 0:02:19]} 7. Re1 {[%clk 0:02:32]}  Be7 {[%clk 0:02:16]} 8. a3 {[%clk 0:02:16]}  O-O {[%clk 0:02:12]} 9. Nd4 {[%clk 0:01:52]}  Bg4 {[%clk 0:02:08]} 10. Be2 {[%clk 0:01:42]}  Bxe2 {[%clk 0:01:37]} 11. Qxe2 {[%clk 0:01:41]}  Nbd7 {[%clk 0:01:24]} 12. b4 {[%clk 0:01:22]}  Qb6 {[%clk 0:01:17]} 13. Nf3 {[%clk 0:01:14]}  a5 {[%clk 0:01:15]} 14. Na4 {[%clk 0:00:49]}  Qc6 {[%clk 0:01:09]} 15. b5 {[%clk 0:00:38]}  Qxc2 {[%clk 0:01:07]} 16. Nc3 {[%clk 0:00:37]}  Bc5 {[%clk 0:01:01]} 17. a4 {[%clk 0:00:28]}  e5 {[%clk 0:00:57]} 18. Ra2 {[%clk 0:00:20]}  Qb3 {[%clk 0:00:56]} 19. Rb2 {[%clk 0:00:18]}  Qe6 {[%clk 0:00:53]} 20. Nxe5 {[%clk 0:00:17]}  Nxe5 {[%clk 0:00:41]} 21. Qxe5 {[%clk 0:00:15]}  Bxf2+ {[%clk 0:00:42]} 0-1


[Site "https://www.chess.com"]

[Event "Titled Tuesday Blitz March 28 Late 2023"]
[White "Gerbelli Neto, Eduardo"]
[Black "Matute Escobar, Roxanny"]
[WhiteFideId "2103281"]
[BlackFideId "3926028"]
[WhiteElo "2178"]
[BlackElo "1732"]
[Result "1-0"]
[Round "05"]
[TimeControl "180+2"]
[Date "2023.03.28"]
[WhiteClock "0:00:12"]
[BlackClock "0:00:03"]

1. e4 {[%clk 0:03:00]}  c5 {[%clk 0:02:59]} 2. Nc3 {[%clk 0:02:56]}  Nc6 {[%clk 0:02:59]} 3. f4 {[%clk 0:02:56]}  g6 {[%clk 0:02:55]} 4. Nf3 {[%clk 0:02:56]}  Bg7 {[%clk 0:02:56]} 5. Bc4 {[%clk 0:02:55]}  e6 {[%clk 0:02:56]} 6. f5 {[%clk 0:02:56]}  Nge7 {[%clk 0:02:50]} 7. fxe6 {[%clk 0:02:56]}  dxe6 {[%clk 0:02:50]} 8. d3 {[%clk 0:02:57]}  O-O {[%clk 0:02:50]} 9. O-O {[%clk 0:02:57]}  a6 {[%clk 0:02:47]} 10. Qe1 {[%clk 0:02:52]}  b5 {[%clk 0:02:47]} 11. Bb3 {[%clk 0:02:50]}  Nd4 {[%clk 0:02:35]} 12. Bg5 {[%clk 0:02:40]}  Bb7 {[%clk 0:02:30]} 13. Qh4 {[%clk 0:02:34]}  Nxf3+ {[%clk 0:02:23]} 14. Rxf3 {[%clk 0:02:31]}  Qd4+ {[%clk 0:02:23]} 15. Be3 {[%clk 0:02:21]}  Qd6 {[%clk 0:02:12]} 16. Bf4 {[%clk 0:01:51]}  e5 {[%clk 0:01:56]} 17. Bh6 {[%clk 0:01:44]}  Bc8 {[%clk 0:01:33]} 18. Raf1 {[%clk 0:01:21]}  c4 {[%clk 0:01:31]} 19. dxc4 {[%clk 0:01:15]}  bxc4 {[%clk 0:01:32]} 20. Bxc4 {[%clk 0:01:08]}  Qc5+ {[%clk 0:01:31]} 21. Kh1 {[%clk 0:01:08]}  Qxc4 {[%clk 0:01:31]} 22. Bxg7 {[%clk 0:01:07]}  Kxg7 {[%clk 0:01:32]} 23. Qxe7 {[%clk 0:01:02]}  Qe6 {[%clk 0:01:11]} 24. Qh4 {[%clk 0:00:52]}  Bb7 {[%clk 0:01:00]} 25. Rh3 {[%clk 0:00:48]}  h5 {[%clk 0:00:58]} 26. Rg3 {[%clk 0:00:48]}  Rh8 {[%clk 0:00:57]} 27. Qg5 {[%clk 0:00:42]}  h4 {[%clk 0:00:50]} 28. Rgf3 {[%clk 0:00:42]}  Raf8 {[%clk 0:00:49]} 29. Rf6 {[%clk 0:00:41]}  Qe8 {[%clk 0:00:37]} 30. Nd5 {[%clk 0:00:40]}  Bxd5 {[%clk 0:00:36]} 31. exd5 {[%clk 0:00:41]}  h3 {[%clk 0:00:34]} 32. d6 {[%clk 0:00:39]}  hxg2+ {[%clk 0:00:34]} 33. Qxg2 {[%clk 0:00:40]}  e4 {[%clk 0:00:29]} 34. Qg3 {[%clk 0:00:32]}  e3 {[%clk 0:00:27]} 35. R6f3 {[%clk 0:00:29]}  Qe4 {[%clk 0:00:23]} 36. Re1 {[%clk 0:00:27]}  Qxc2 {[%clk 0:00:16]} 37. Rfxe3 {[%clk 0:00:19]}  Rd8 {[%clk 0:00:13]} 38. Qe5+ {[%clk 0:00:18]}  Kg8 {[%clk 0:00:10]} 39. R1e2 {[%clk 0:00:19]}  Qb1+ {[%clk 0:00:09]} 40. Kg2 {[%clk 0:00:18]}  Rc8 {[%clk 0:00:04]} 41. d7 {[%clk 0:00:18]}  Rd8 {[%clk 0:00:04]} 42. Qe8+ {[%clk 0:00:18]}  Kg7 {[%clk 0:00:04]} 43. Qe5+ {[%clk 0:00:18]}  Kg8 {[%clk 0:00:05]} 44. Qe7 {[%clk 0:00:18]}  Kg7 {[%clk 0:00:05]} 45. Rf3 {[%clk 0:00:17]}  Qd1 {[%clk 0:00:04]} 46. Qxf7+ {[%clk 0:00:15]}  Kh6 {[%clk 0:00:05]} 47. Rh3+ {[%clk 0:00:15]}  Kg5 {[%clk 0:00:05]} 48. Qe7+ {[%clk 0:00:15]}  Kg4 {[%clk 0:00:03]} 49. Re4+ {[%clk 0:00:14]}  Kf5 {[%clk 0:00:03]} 50. Qe6+ {[%clk 0:00:14]}  Kg5 {[%clk 0:00:03]} 51. Qe5# {[%clk 0:00:12]} 1-0


[Site "https://www.chess.com"]

[Event "Titled Tuesday Blitz March 28 Late 2023"]
[White "Svicevic, Rastko"]
[Black "Shkuran, Danylo"]
[WhiteFideId "916315"]
[BlackFideId "14106248"]
[WhiteElo "2071"]
[BlackElo "2427"]
[Result "1-0"]
[Round "05"]
[TimeControl "180+2"]
[Date "2023.03.28"]
[WhiteClock "0:00:05"]
[BlackClock "0:00:10"]

1. d4 {[%clk 0:03:00]}  Nf6 {[%clk 0:02:54]} 2. Bg5 {[%clk 0:02:59]}  e6 {[%clk 0:02:54]} 3. e4 {[%clk 0:02:57]}  Be7 {[%clk 0:02:53]} 4. e5 {[%clk 0:02:24]}  Nd5 {[%clk 0:02:52]} 5. Bxe7 {[%clk 0:02:23]}  Qxe7 {[%clk 0:02:51]} 6. c4 {[%clk 0:02:18]}  Nb6 {[%clk 0:02:51]} 7. Nc3 {[%clk 0:02:17]}  d6 {[%clk 0:02:49]} 8. Nf3 {[%clk 0:02:07]}  Nc6 {[%clk 0:02:48]} 9. exd6 {[%clk 0:02:03]}  cxd6 {[%clk 0:02:48]} 10. Bd3 {[%clk 0:02:03]}  h6 {[%clk 0:02:47]} 11. O-O {[%clk 0:02:01]}  O-O {[%clk 0:02:47]} 12. Re1 {[%clk 0:01:54]}  Qd8 {[%clk 0:02:45]} 13. a3 {[%clk 0:01:38]}  d5 {[%clk 0:02:38]} 14. c5 {[%clk 0:01:36]}  Nd7 {[%clk 0:02:35]} 15. b4 {[%clk 0:01:37]}  a6 {[%clk 0:02:34]} 16. Rb1 {[%clk 0:01:08]}  Nf6 {[%clk 0:02:33]} 17. a4 {[%clk 0:01:07]}  Bd7 {[%clk 0:02:32]} 18. b5 {[%clk 0:01:07]}  axb5 {[%clk 0:02:33]} 19. axb5 {[%clk 0:01:07]}  Na5 {[%clk 0:02:34]} 20. Ne5 {[%clk 0:01:00]}  Qc7 {[%clk 0:02:23]} 21. Rb4 {[%clk 0:00:59]}  Rfc8 {[%clk 0:02:16]} 22. Qb1 {[%clk 0:00:58]}  Be8 {[%clk 0:02:09]} 23. b6 {[%clk 0:00:57]}  Qd8 {[%clk 0:02:07]} 24. Nb5 {[%clk 0:00:56]}  Bxb5 {[%clk 0:01:59]} 25. Bxb5 {[%clk 0:00:57]}  Ne4 {[%clk 0:01:52]} 26. Qb2 {[%clk 0:00:51]}  Qf6 {[%clk 0:01:13]} 27. f3 {[%clk 0:00:51]}  Nxc5 {[%clk 0:01:03]} 28. dxc5 {[%clk 0:00:49]}  Rxc5 {[%clk 0:01:04]} 29. Bd3 {[%clk 0:00:44]}  Qe7 {[%clk 0:00:49]} 30. h3 {[%clk 0:00:42]}  Rac8 {[%clk 0:00:49]} 31. Bb1 {[%clk 0:00:36]}  Rc3 {[%clk 0:00:42]} 32. Rg4 {[%clk 0:00:29]}  Qf6 {[%clk 0:00:35]} 33. Nd7 {[%clk 0:00:25]}  Qe7 {[%clk 0:00:30]} 34. Ne5 {[%clk 0:00:25]}  Qf6 {[%clk 0:00:30]} 35. Nd3 {[%clk 0:00:24]}  Kh8 {[%clk 0:00:13]} 36. Ra4 {[%clk 0:00:20]}  Nc4 {[%clk 0:00:12]} 37. Qe2 {[%clk 0:00:20]}  Nxb6 {[%clk 0:00:09]} 38. Ra7 {[%clk 0:00:20]}  Nc4 {[%clk 0:00:07]} 39. Rxb7 {[%clk 0:00:19]}  Qd4+ {[%clk 0:00:07]} 40. Kh2 {[%clk 0:00:18]}  Nd6 {[%clk 0:00:07]} 41. Rd7 {[%clk 0:00:16]}  Nf5 {[%clk 0:00:07]} 42. Qf2 {[%clk 0:00:07]}  Rxd3 {[%clk 0:00:05]} 43. Qxd4 {[%clk 0:00:06]}  Rxd4 {[%clk 0:00:05]} 44. Bxf5 {[%clk 0:00:06]}  exf5 {[%clk 0:00:05]} 45. Rxf7 {[%clk 0:00:07]}  Rd2 {[%clk 0:00:02]} 46. Rxf5 {[%clk 0:00:05]}  d4 {[%clk 0:00:02]} 47. Rf7 {[%clk 0:00:03]}  Rd8 {[%clk 0:00:02]} 48. Ree7 {[%clk 0:00:04]}  Rg8 {[%clk 0:00:02]} 49. Rd7 {[%clk 0:00:03]}  Kh7 {[%clk 0:00:03]} 50. Rf4 {[%clk 0:00:03]}  d3 {[%clk 0:00:03]} 51. Rfd4 {[%clk 0:00:04]}  Re8 {[%clk 0:00:03]} 52. Rxd3 {[%clk 0:00:04]}  Rde2 {[%clk 0:00:03]} 53. Rd2 {[%clk 0:00:03]}  R2e6 {[%clk 0:00:04]} 54. R7d6 {[%clk 0:00:03]}  R6e7 {[%clk 0:00:03]} 55. Rd7 {[%clk 0:00:03]}  Re6 {[%clk 0:00:04]} 56. R7d6 {[%clk 0:00:03]}  Re5 {[%clk 0:00:04]} 57. R6d5 {[%clk 0:00:03]}  Re1 {[%clk 0:00:04]} 58. R5d3 {[%clk 0:00:03]}  R8e7 {[%clk 0:00:04]} 59. Rd7 {[%clk 0:00:03]}  R7e6 {[%clk 0:00:04]} 60. Rf7 {[%clk 0:00:03]}  Rg6 {[%clk 0:00:04]} 61. Rf2 {[%clk 0:00:03]}  Re5 {[%clk 0:00:03]} 62. Rc7 {[%clk 0:00:03]}  Rf6 {[%clk 0:00:04]} 63. Rcc2 {[%clk 0:00:04]}  Rg6 {[%clk 0:00:04]} 64. Rce2 {[%clk 0:00:04]}  Ra5 {[%clk 0:00:05]} 65. Rd2 {[%clk 0:00:04]}  Kg8 {[%clk 0:00:05]} 66. Rde2 {[%clk 0:00:05]}  Kf8 {[%clk 0:00:05]} 67. Rb2 {[%clk 0:00:05]}  Re6 {[%clk 0:00:05]} 68. f4 {[%clk 0:00:06]}  Kf7 {[%clk 0:00:05]} 69. f5 {[%clk 0:00:07]}  Ree5 {[%clk 0:00:05]} 70. Rb7+ {[%clk 0:00:07]}  Kf6 {[%clk 0:00:05]} 71. Rb6+ {[%clk 0:00:08]}  Kf7 {[%clk 0:00:05]} 72. Rb7+ {[%clk 0:00:07]}  Kf8 {[%clk 0:00:05]} 73. Rb8+ {[%clk 0:00:06]}  Ke7 {[%clk 0:00:06]} 74. Rb7+ {[%clk 0:00:05]}  Kf6 {[%clk 0:00:06]} 75. Rb6+ {[%clk 0:00:06]}  Kf7 {[%clk 0:00:05]} 76. g4 {[%clk 0:00:06]}  Re7 {[%clk 0:00:04]} 77. Rbb2 {[%clk 0:00:06]}  Rae5 {[%clk 0:00:04]} 78. Rbd2 {[%clk 0:00:05]}  Rc7 {[%clk 0:00:04]} 79. Kg2 {[%clk 0:00:06]}  Rc6 {[%clk 0:00:05]} 80. Rde2 {[%clk 0:00:06]}  Rb5 {[%clk 0:00:04]} 81. Rf3 {[%clk 0:00:06]}  Kf6 {[%clk 0:00:04]} 82. Rfe3 {[%clk 0:00:06]}  Rbb6 {[%clk 0:00:04]} 83. Kg3 {[%clk 0:00:06]}  Kf7 {[%clk 0:00:03]} 84. h4 {[%clk 0:00:06]}  Kg8 {[%clk 0:00:03]} 85. Re8+ {[%clk 0:00:05]}  Kh7 {[%clk 0:00:03]} 86. R8e7 {[%clk 0:00:05]}  Rc3+ {[%clk 0:00:03]} 87. R7e3 {[%clk 0:00:06]}  Rc7 {[%clk 0:00:02]} 88. Rf3 {[%clk 0:00:06]}  Rbc6 {[%clk 0:00:02]} 89. g5 {[%clk 0:00:06]}  hxg5 {[%clk 0:00:02]} 90. hxg5 {[%clk 0:00:06]}  Rc3 {[%clk 0:00:02]} 91. Rh2+ {[%clk 0:00:05]}  Kg8 {[%clk 0:00:02]} 92. Re2 {[%clk 0:00:03]}  Rxf3+ {[%clk 0:00:02]} 93. Kxf3 {[%clk 0:00:04]}  Kf7 {[%clk 0:00:03]} 94. Kf4 {[%clk 0:00:03]}  Rc4+ {[%clk 0:00:03]} 95. Re4 {[%clk 0:00:03]}  Rc1 {[%clk 0:00:04]} 96. Ra4 {[%clk 0:00:03]}  Ra1 {[%clk 0:00:05]} 97. Rxa1 {[%clk 0:00:02]}  Ke8 {[%clk 0:00:05]} 98. Ra7 {[%clk 0:00:02]}  Kf8 {[%clk 0:00:06]} 99. Ra8+ {[%clk 0:00:02]}  Kf7 {[%clk 0:00:07]} 100. g6+ {[%clk 0:00:02]}  Kf6 {[%clk 0:00:06]} 101. Rf8+ {[%clk 0:00:03]}  Ke7 {[%clk 0:00:07]} 102. Rf7+ {[%clk 0:00:03]}  Ke8 {[%clk 0:00:08]} 103. Rxg7 {[%clk 0:00:04]}  Kf8 {[%clk 0:00:09]} 104. Rf7+ {[%clk 0:00:04]}  Kg8 {[%clk 0:00:09]} 105. Rb7 {[%clk 0:00:05]}  Kh8 {[%clk 0:00:10]} 106. Ra7 {[%clk 0:00:05]} 1-0


[Site "https://www.chess.com"]

[Event "Titled Tuesday Blitz March 28 Late 2023"]
[White "Aung Thant Zin"]
[Black "Jimenez, Joaquin"]
[WhiteFideId "13000063"]
[BlackFideId "109860"]
[WhiteElo "2278"]
[BlackElo "2163"]
[Result "1-0"]
[Round "05"]
[TimeControl "180+2"]
[Date "2023.03.28"]
[WhiteClock "0:02:36"]
[BlackClock "0:02:45"]

1. e4 {[%clk 0:02:59]}  e6 {[%clk 0:02:59]} 2. d4 {[%clk 0:02:58]}  d5 {[%clk 0:02:59]} 3. Nc3 {[%clk 0:02:57]}  Bb4 {[%clk 0:02:58]} 4. exd5 {[%clk 0:02:55]}  exd5 {[%clk 0:02:57]} 5. Bd3 {[%clk 0:02:54]}  Nf6 {[%clk 0:02:57]} 6. Ne2 {[%clk 0:02:54]}  O-O {[%clk 0:02:56]} 7. O-O {[%clk 0:02:54]}  c6 {[%clk 0:02:56]} 8. Bg5 {[%clk 0:02:53]}  h6 {[%clk 0:02:56]} 9. Bh4 {[%clk 0:02:53]}  Bg4 {[%clk 0:02:56]} 10. f3 {[%clk 0:02:52]}  Bh5 {[%clk 0:02:56]} 11. Nf4 {[%clk 0:02:45]}  Bg6 {[%clk 0:02:47]} 12. Bxg6 {[%clk 0:02:37]}  fxg6 {[%clk 0:02:46]} 13. Ne6 {[%clk 0:02:37]}  Re8 {[%clk 0:02:45]} 14. Nxd8 {[%clk 0:02:36]} 1-0


[Site "https://www.chess.com"]

[Event "Titled Tuesday Blitz March 28 Late 2023"]
[White "Maranhao,Jose Renato Ruiz"]
[Black "Santos Flores, Alberto"]
[WhiteFideId "2135175"]
[BlackFideId "3601234"]
[WhiteElo "1970"]
[BlackElo "2235"]
[Result "0-1"]
[Round "05"]
[TimeControl "180+2"]
[Date "2023.03.28"]
[WhiteClock "0:00:13"]
[BlackClock "0:01:41"]

1. e4 {[%clk 0:03:00]}  c5 {[%clk 0:03:00]} 2. d4 {[%clk 0:02:59]}  cxd4 {[%clk 0:03:00]} 3. c3 {[%clk 0:03:00]}  g6 {[%clk 0:02:59]} 4. cxd4 {[%clk 0:02:59]}  d5 {[%clk 0:02:59]} 5. exd5 {[%clk 0:02:54]}  Nf6 {[%clk 0:02:59]} 6. Nf3 {[%clk 0:02:46]}  Nxd5 {[%clk 0:02:58]} 7. Nc3 {[%clk 0:02:38]}  Bg7 {[%clk 0:02:57]} 8. Bb5+ {[%clk 0:02:37]}  Nc6 {[%clk 0:02:57]} 9. Qa4 {[%clk 0:02:23]}  O-O {[%clk 0:02:47]} 10. Bxc6 {[%clk 0:02:13]}  bxc6 {[%clk 0:02:21]} 11. Qxc6 {[%clk 0:01:58]}  Nb4 {[%clk 0:02:21]} 12. Qxa8 {[%clk 0:01:17]}  Nc2+ {[%clk 0:02:21]} 13. Kd2 {[%clk 0:01:13]}  Nxa1 {[%clk 0:02:20]} 14. Qxa7 {[%clk 0:01:10]}  Bg4 {[%clk 0:02:19]} 15. Rd1 {[%clk 0:00:24]}  Bxf3 {[%clk 0:02:09]} 16. gxf3 {[%clk 0:00:23]}  Bxd4 {[%clk 0:02:09]} 17. Qa4 {[%clk 0:00:18]}  Qb6 {[%clk 0:01:54]} 18. b3 {[%clk 0:00:13]}  Bxf2 {[%clk 0:01:41]} 19. Bb2 {[%clk 0:00:13]}  Qe3# {[%clk 0:01:41]} 0-1


[Site "https://www.chess.com"]

[Event "Titled Tuesday Blitz March 28 Late 2023"]
[White "Tsukerman, Julia"]
[Black "Romero Pallares, Daniel"]
[WhiteFideId "2621649"]
[BlackFideId "32025637"]
[WhiteElo "1667"]
[BlackElo "2195"]
[Result "0-1"]
[Round "05"]
[TimeControl "180+2"]
[Date "2023.03.28"]
[WhiteClock "0:00:01"]
[BlackClock "0:00:46"]

1. e4 {[%clk 0:03:00]}  g6 {[%clk 0:02:55]} 2. d4 {[%clk 0:02:59]}  Bg7 {[%clk 0:02:56]} 3. Be3 {[%clk 0:02:51]}  d5 {[%clk 0:02:52]} 4. e5 {[%clk 0:02:51]}  c5 {[%clk 0:02:51]} 5. c3 {[%clk 0:02:50]}  cxd4 {[%clk 0:02:51]} 6. cxd4 {[%clk 0:02:50]}  Nc6 {[%clk 0:02:52]} 7. Nc3 {[%clk 0:02:48]}  Nh6 {[%clk 0:02:47]} 8. f4 {[%clk 0:02:44]}  O-O {[%clk 0:02:43]} 9. Nf3 {[%clk 0:02:44]}  Bg4 {[%clk 0:02:43]} 10. Be2 {[%clk 0:02:44]}  f6 {[%clk 0:02:43]} 11. O-O {[%clk 0:02:39]}  Nf5 {[%clk 0:02:42]} 12. Qd2 {[%clk 0:02:34]}  Bxf3 {[%clk 0:02:37]} 13. Bxf3 {[%clk 0:02:32]}  e6 {[%clk 0:02:33]} 14. Rac1 {[%clk 0:02:14]}  fxe5 {[%clk 0:02:25]} 15. fxe5 {[%clk 0:02:09]}  Nxe3 {[%clk 0:02:24]} 16. Qxe3 {[%clk 0:02:07]}  Qh4 {[%clk 0:02:25]} 17. Rcd1 {[%clk 0:02:00]}  Bh6 {[%clk 0:02:21]} 18. Qf2 {[%clk 0:01:52]}  Qg5 {[%clk 0:01:48]} 19. Kh1 {[%clk 0:01:38]}  Rf4 {[%clk 0:01:34]} 20. Ne2 {[%clk 0:01:31]}  Rf7 {[%clk 0:01:32]} 21. Qg3 {[%clk 0:01:20]}  Qxg3 {[%clk 0:01:28]} 22. Nxg3 {[%clk 0:01:19]}  Be3 {[%clk 0:01:28]} 23. Ne2 {[%clk 0:01:10]}  Raf8 {[%clk 0:01:24]} 24. Rd3 {[%clk 0:01:00]}  Bg5 {[%clk 0:01:24]} 25. Rdd1 {[%clk 0:00:44]}  Kg7 {[%clk 0:01:23]} 26. h3 {[%clk 0:00:28]}  h5 {[%clk 0:01:22]} 27. Kh2 {[%clk 0:00:21]}  Bd8 {[%clk 0:01:20]} 28. Rfe1 {[%clk 0:00:16]}  Bb6 {[%clk 0:01:18]} 29. Rd3 {[%clk 0:00:16]}  Kh6 {[%clk 0:01:18]} 30. Rc1 {[%clk 0:00:15]}  Rg7 {[%clk 0:01:10]} 31. Kg3 {[%clk 0:00:15]}  g5 {[%clk 0:01:10]} 32. Nc3 {[%clk 0:00:09]}  Ne7 {[%clk 0:01:07]} 33. Kh2 {[%clk 0:00:09]}  g4 {[%clk 0:01:07]} 34. hxg4 {[%clk 0:00:09]}  hxg4 {[%clk 0:01:08]} 35. Be2 {[%clk 0:00:08]}  Nf5 {[%clk 0:01:06]} 36. Rcd1 {[%clk 0:00:06]}  Kg5 {[%clk 0:01:03]} 37. Kg1 {[%clk 0:00:06]}  Rh8 {[%clk 0:01:02]} 38. Na4 {[%clk 0:00:06]}  Rgh7 {[%clk 0:00:58]} 39. Kf2 {[%clk 0:00:05]}  Bd8 {[%clk 0:00:57]} 40. Nc5 {[%clk 0:00:04]}  Rh6 {[%clk 0:00:56]} 41. Bf1 {[%clk 0:00:04]}  b6 {[%clk 0:00:53]} 42. Nb3 {[%clk 0:00:04]}  Be7 {[%clk 0:00:54]} 43. Nd2 {[%clk 0:00:04]}  Rf8 {[%clk 0:00:51]} 44. Ke1 {[%clk 0:00:03]}  Kg6 {[%clk 0:00:51]} 45. Nb3 {[%clk 0:00:02]}  Bh4+ {[%clk 0:00:51]} 46. Ke2 {[%clk 0:00:02]}  Ng3+ {[%clk 0:00:50]} 47. Ke1 {[%clk 0:00:02]}  Ne4+ {[%clk 0:00:49]} 48. Ke2 {[%clk 0:00:02]}  Rf2+ {[%clk 0:00:49]} 49. Ke1 {[%clk 0:00:01]}  Rxb2+ {[%clk 0:00:46]} 0-1


[Site "https://www.chess.com"]